bitfinex-derivatives/quotes_SOLF0:USTF0_20250105
["timestamp","ask_amount","ask_price","bid_price","bid_amount"]
[1736070778502,2.344,213.37,213.29,1.4957]
[1736070778997,2.3443,213.34,213.29,1.4957]
[1736070779301,3.18,213.34,213.29,1.4957]
[1736070779702,3.18,213.34,213.31,2.3445]
[1736070780899,11.60178696,213.39,213.29,1.4957]
[1736070781103,3.18,213.38,213.34,2.3442]
[1736070782405,3.18,213.39,213.32,2.3443]
[1736070782705,2.3439,213.37,213.29,1.4957]
[1736070782907,3.18,213.4,213.32,2.3443]
[1736070783208,11.60178696,213.42,213.29,1.4957]
[1736070783399,3.18,213.41,213.29,1.4957]
[1736070783600,3.18,213.4,213.29,1.4957]
[1736070783801,11.60178696,213.44,213.29,1.4957]
[1736070784004,2.3434,213.42,213.36,2.344]
[1736070784504,11.60178696,213.37,213.28,2.8416]
[1736070784707,2.3443,213.33,213.29,2.3448]
[1736070785305,3.18,213.36,213.28,2.3449]
[1736070785601,11.60178696,213.34,213.28,2.3449]
[1736070785903,11.60178696,213.34,213.23,1.498]
[1736070787003,2.3444,213.33,213.29,2.3447]
[1736070787701,2.3446,213.31,213.23,1.498]
[1736070788006,11.60178696,213.34,213.23,1.498]
[1736070788505,2.3444,213.33,213.23,1.498]
[1736070789414,2.3444,213.33,213.28,2.3448]
[1736070789704,11.60178696,213.31,213.28,2.3448]
[1736070790107,2.3444,213.33,213.28,2.3448]
[1736070790308,11.60178696,213.32,213.29,2.3447]
[1736070790709,2.3448,213.29,213.1,7.0406]
[1736070791009,3.18,213.29,213.17,11.60178696]
[1736070791409,11.60178696,213.3,213.17,11.60178696]
[1736070791410,13.94658696,213.3,213.25,2.3451]
[1736070791609,14.78178696,213.3,213.18,3.18]
[1736070792012,14.78178696,213.3,213.19,1.4913]
[1736070792305,14.78178696,213.3,213.27,2.3449]
[1736070793011,17.12658696,213.3,213.25,2.3452]
[1736070794009,14.78178696,213.3,213.19,1.4913]
[1736070794313,11.60178696,213.29,213.19,1.4913]
[1736070794514,14.78178696,213.29,213.19,1.4913]
[1736070794715,11.60178696,213.3,213.19,1.4913]
[1736070795116,14.78178696,213.34,213.2,11.60178696]
[1736070795410,3.18,213.37,213.23,11.60178696]
[1736070795611,11.60178696,213.37,213.24,2.8475]
[1736070795811,11.60178696,213.37,213.26,11.60178696]
[1736070796016,11.60178696,213.37,213.35,2.3441]
[1736070796208,5.5238,213.39,213.27,1.4784]
[1736070796412,3.18,213.39,213.27,1.4784]
[1736070797212,2.344,213.37,213.32,2.3443]
[1736070797614,11.60178696,213.37,213.27,1.4784]
[1736070797818,14.78178696,213.37,213.27,1.4784]
[1736070798514,11.60178696,213.37,213.27,1.4784]
[1736070798713,2.3441,213.36,213.31,2.3445]
[1736070799805,11.60178696,213.4,213.27,13.08018696]
[1736070800010,3.18,213.39,213.27,13.08018696]
[1736070800609,3.18,213.39,213.27,1.4784]
[1736070800811,6.69731492,213.39,213.27,1.4784]
[1736070801113,2.3439,213.38,213.33,2.3443]
[1736070801415,3.18,213.39,213.27,1.4784]
[1736070802010,2.3439,213.37,213.33,2.3443]
[1736070802318,11.60178696,213.43,213.28,11.60178696]
[1736070802517,2.3436,213.4,213.28,11.60178696]
[1736070803115,11.60178696,213.46,213.31,11.60178696]
[1736070803313,11.60178696,213.46,213.32,6.0263]
[1736070803715,3.18,213.45,213.2,3.18]
[1736070804017,14.03,213.5,213.27,11.60178696]
[1736070804018,2.3439,213.37,213.27,11.60178696]
[1736070804217,11.60178696,213.4,213.28,1.3794]
[1736070804419,2.344,213.36,213.28,1.3794]
[1736070805215,2.344,213.36,213.31,2.3444]
[1736070805618,2.344,213.36,213.29,2.951]
[1736070806522,2.3435,213.41,213.31,11.60178696]
[1736070806717,3.2,213.45,213.31,11.60178696]
[1736070806913,3.2,213.45,213.32,3.2]
[1736070807115,2.3433,213.43,213.32,3.2]
[1736070807729,14.80178696,213.42,213.29,2.951]
[1736070807918,3.51647537,213.41,213.29,2.951]
[1736070808424,14.80178696,213.42,213.29,2.951]
[1736070808722,2.3438,213.38,213.33,2.3443]
[1736070810321,2.3438,213.38,213.29,2.951]
[1736070810925,2.3441,213.35,213.28,1.3794]
[1736070811318,2.3441,213.35,213.3,2.3446]
[1736070811520,2.3441,213.35,213.28,1.3794]
[1736070811915,11.60178696,213.36,213.33,2.3443]
[1736070812117,2.3439,213.37,213.33,2.3443]
[1736070814015,2.3442,213.34,213.3,2.3446]
[1736070814420,2.3442,213.34,213.28,1.3794]
[1736070814618,2.3442,213.34,213.31,2.3445]
[1736070814820,13.94588696,213.35,213.31,2.3445]
[1736070815020,11.60178696,213.38,213.28,1.3794]
[1736070815217,11.60178696,213.38,213.31,2.3445]
[1736070815420,160.61581858,213.46,213.3,11.60178696]
[1736070815627,11.60178696,213.44,213.31,2.9034]
[1736070815830,2.3436,213.4,213.35,2.344]
[1736070816219,11.60178696,213.41,213.31,2.9034]
[1736070816620,2.344,213.37,213.32,2.3444]
[1736070817432,2.3437,213.39,213.31,2.9034]
[1736070817827,11.60178696,213.41,213.31,2.9034]
[1736070818329,14.80178696,213.44,213.31,2.9034]
[1736070818632,2.3434,213.41,213.31,2.9034]
[1736070818833,11.60178696,213.44,213.31,2.9034]
[1736070819029,11.60178696,213.38,213.26,11.60178696]
[1736070819330,2.3439,213.37,213.33,2.3443]
[1736070819729,2.3439,213.37,213.31,2.3444]
[1736070820034,2.3439,213.37,213.27,4.4797]
[1736070820629,11.60178696,213.38,213.31,2.3444]
[1736070820834,11.60178696,213.38,213.27,4.4797]
[1736070822532,2.3439,213.37,213.32,2.3444]
[1736070823237,2.3439,213.37,213.33,2.3443]
[1736070823434,3.2,213.4,213.28,11.60178696]
[1736070823637,11.60178696,213.44,213.28,11.60178696]
[1736070823833,3.2,213.43,213.35,2.344]
[1736070824035,2.3435,213.41,213.35,2.344]
[1736070824239,2.3435,213.41,213.31,3.2]
[1736070824438,2.3435,213.41,213.36,2.3439]
[1736070825636,2.344,213.37,213.26,2.3451]
[1736070825833,2.344,213.37,213.27,11.60178696]
[1736070826237,2.344,213.37,213.31,2.3444]
[1736070826540,2.344,213.37,213.27,11.60178696]
[1736070826739,2.344,213.37,213.28,1.419]
[1736070827640,2.344,213.37,213.32,2.3444]
[1736070828331,11.60178696,213.35,213.29,1.4075]
[1736070828536,2.3444,213.32,213.21,3.2]
[1736070828737,3.2,213.33,213.22,11.60178696]
[1736070829041,2.3447,213.3,213.26,2.345]
[1736070829434,3.2,213.33,213.26,2.345]
[1736070829941,2.3446,213.31,213.26,2.345]
[1736070830635,2.3446,213.31,213.22,11.60178696]
[1736070830940,2.3446,213.31,213.27,2.3449]
[1736070832036,5.5444,213.33,213.28,2.3449]
[1736070835237,25.0,213.3,213.28,2.3449]
[1736070836042,25.0,213.3,213.29,2.3448]
[1736070836248,25.0,213.3,213.22,11.60178696]
[1736070837139,25.0,213.3,213.27,2.3449]
[1736070842246,22.6551,213.25,213.07,25.97421297]
[1736070842548,11.60178696,213.17,213.07,25.97421297]
[1736070843050,11.60178696,213.17,213.04,11.60178696]
[1736070843941,5.6061,213.18,213.1,2.3468]
[1736070844251,11.60178696,213.2,213.01,4.2367]
[1736070844451,11.60178696,213.2,213.12,2.3466]
[1736070844643,11.60178696,213.2,213.09,11.60178696]
[1736070845049,11.60178696,213.2,213.14,2.3464]
[1736070845350,11.60178696,213.2,213.1,4.2791]
[1736070845549,13.94758696,213.2,213.13,2.3465]
[1736070845744,11.60178696,213.2,213.1,4.2791]
[1736070846749,11.60178696,213.2,213.16,2.3462]
[1736070847451,11.60178696,213.2,213.1,1.3909]
[1736070847944,34.25688696,213.2,213.16,2.3462]
[1736070848151,34.25688696,213.2,213.1,1.3909]
[1736070849344,36.60268696,213.2,213.1,1.3909]
[1736070849545,34.25688696,213.2,213.1,1.3909]
[1736070849949,34.25688696,213.2,213.16,2.3462]
[1736070850747,34.25688696,213.2,213.1,1.3909]
[1736070850948,36.60268696,213.2,213.15,2.3463]
[1736070852854,36.60268696,213.2,213.16,2.3462]
[1736070853155,34.25688696,213.2,213.16,2.3462]
[1736070856858,36.60268696,213.2,213.16,2.3462]
[1736070857558,25.0009,213.2,213.16,2.3462]
[1736070858060,25.9151,213.2,213.08,11.60178696]
[1736070858257,22.6551,213.2,213.08,11.60178696]
[1736070858455,25.9151,213.2,213.09,1.4554]
[1736070858662,25.9151,213.2,213.11,11.60178696]
[1736070859263,22.6551,213.2,213.11,11.60178696]
[1736070859657,3.26,213.21,213.09,4.4082]
[1736070859857,3.26,213.21,213.13,11.60178696]
[1736070860062,11.60178696,213.24,213.13,11.60178696]
[1736070860564,2.3458,213.2,213.16,2.3462]
[1736070862360,2.3457,213.21,213.17,9.78507564]
[1736070862765,3.26,213.25,213.19,7.43897564]
[1736070863064,2.3454,213.24,213.21,7.43897564]
[1736070863465,7.43897564,213.28,213.21,7.43897564]
[1736070863665,3.26,213.27,213.21,7.43897564]
[1736070864265,2.3451,213.26,213.19,11.61854611]
[1736070864663,3.18,213.28,213.19,11.61854611]
[1736070865065,2.6902,213.29,213.12,3.26]
[1736070865269,3.18,213.28,213.19,11.61854611]
[1736070865562,11.61854611,213.31,213.19,11.61854611]
[1736070865767,3.18,213.3,213.22,11.61854611]
[1736070865969,3.18,213.31,213.22,11.61854611]
[1736070866167,2.3449,213.28,213.23,2.3453]
[1736070866973,2.3449,213.28,213.24,2.3453]
[1736070867365,14.03,213.3,212.95,51.94842596]
[1736070867567,14.03,213.3,212.99,6.48603579]
[1736070867568,11.61854611,213.02,212.99,6.48603579]
[1736070867965,11.61854611,213.05,212.99,6.48603579]
[1736070868368,11.61854611,213.08,212.99,6.48603579]
[1736070868574,11.61854611,213.08,212.99,9.90603579]
[1736070868773,11.61854611,213.11,212.99,9.90603579]
[1736070868974,11.61854611,213.08,212.99,3.42]
[1736070869172,11.61854611,213.02,212.68,19.55066011]
[1736070869375,11.61854611,213.02,212.87,3.42]
[1736070869770,3.42,213.08,212.92,2.3488]
[1736070869976,11.61854611,213.03,212.88,11.61854611]
[1736070870367,11.61854611,213.06,212.91,13.04954611]
[1736070870576,3.42,213.08,212.94,11.61854611]
[1736070870772,2.3472,213.08,212.98,2.3481]
[1736070870973,11.61854611,213.09,212.95,3.42]
[1736070871172,3.42,213.13,212.97,11.61854611]
[1736070871173,11.61854611,213.12,212.97,11.61854611]
[1736070871371,2.3469,213.1,213.0,2.3479]
[1736070871575,11.61854611,213.12,212.98,3.42]
[1736070872273,2.347,213.09,212.99,2.348]
[1736070872468,11.61854611,213.12,213.0,3.42]
[1736070873177,11.61854611,213.15,213.01,11.61854611]
[1736070873572,3.7965,213.17,213.04,11.61854611]
[1736070874074,2.3461,213.17,213.04,11.61854611]
[1736070874380,2.3461,213.17,213.09,2.3469]
[1736070874580,2.3465,213.13,213.05,1.5243]
[1736070874777,11.61854611,213.15,213.05,3.42]
[1736070875478,2.3468,213.11,213.05,3.42]
[1736070876177,2.3466,213.12,213.05,3.42]
[1736070876372,11.61854611,213.15,213.05,3.42]
[1736070876573,11.61854611,213.18,213.05,3.42]
[1736070876772,2.3465,213.14,213.06,2.3472]
[1736070877177,2.3465,213.14,213.05,3.42]
[1736070878383,2.3465,213.14,213.08,2.3471]
[1736070879784,2.3463,213.16,213.08,2.347]
[1736070880082,2.3463,213.16,213.05,3.42]
[1736070880286,2.3463,213.16,213.08,2.347]
[1736070880480,11.61854611,213.18,213.06,11.61854611]
[1736070880791,11.61854611,213.22,213.13,2.3465]
[1736070881285,2.346,213.18,213.13,2.3465]
[1736070881682,2.346,213.18,213.08,11.61854611]
[1736070881883,2.346,213.18,213.11,2.3467]
[1736070882486,7.40249485,213.2,213.08,11.61854611]
[1736070882885,5.05669485,213.2,213.08,11.61854611]
[1736070883491,2.3459,213.19,213.13,2.3464]
[1736070883788,2.3459,213.19,213.08,11.61854611]
[1736070884380,2.3461,213.17,213.12,2.3466]
[1736070884589,2.3461,213.17,213.08,11.61854611]
[1736070887487,2.3461,213.17,213.11,2.3467]
[1736070888091,2.3471,213.08,213.03,2.3476]
[1736070888292,11.61854611,213.13,213.02,1.4531]
[1736070889496,2.347,213.09,213.02,1.4531]
[1736070889694,13.14024611,213.16,213.04,11.61854611]
[1736070890092,2.3468,213.11,213.04,11.61854611]
[1736070890394,13.14024611,213.16,213.06,2.3473]
[1736070890596,13.14024611,213.16,213.04,11.61854611]
[1736070890597,2.3465,213.13,213.04,11.61854611]
[1736070891198,2.3467,213.12,213.06,2.3473]
[1736070892098,2.3468,213.11,213.04,11.61854611]
[1736070893495,2.3468,213.11,213.06,2.3473]
[1736070895497,2.3469,213.1,213.05,2.3474]
[1736070896899,2.3467,213.12,213.07,2.3472]
[1736070897292,2.3467,213.12,213.03,1.3887]
[1736070897600,11.61854611,213.12,213.03,1.3887]
[1736070897992,2.3473,213.07,213.03,1.3887]
[1736070898198,15.03854611,213.18,213.03,1.3887]
[1736070898199,3.42,213.18,213.03,1.3887]
[1736070898397,11.61854611,213.14,213.03,1.3887]
[1736070898902,2.3473,213.07,213.03,1.3887]
[1736070899295,11.61854611,213.14,213.03,1.3887]
[1736070900199,2.3474,213.06,213.03,1.3887]
[1736070900900,2.3475,213.04,213.02,1.4531]
[1736070901102,11.61854611,213.11,212.98,4.9364]
[1736070902103,2.3476,213.03,212.99,2.3481]
[1736070902307,11.61854611,213.08,212.94,11.61854611]
[1736070902604,11.61854611,213.05,212.94,11.61854611]
[1736070902801,15.03854611,213.05,212.94,11.61854611]
[1736070902999,3.42,213.08,212.97,11.61854611]
[1736070903808,2.3474,213.05,212.97,11.61854611]
[1736070904104,3.42,213.08,212.97,11.61854611]
[1736070904907,2.3479,213.01,212.97,11.61854611]
[1736070905103,2.3479,213.01,212.96,2.3484]
[1736070905303,2.3479,213.01,212.96,13.96694611]
[1736070905703,2.3477,213.03,212.96,11.61854611]
[1736070905904,11.61854611,213.11,212.99,11.61854611]
[1736070906104,15.03854611,213.11,212.99,11.61854611]
[1736070906606,11.61854611,213.11,212.99,11.61854611]
[1736070907005,2.3473,213.06,213.01,2.3478]
[1736070907204,15.03854611,213.14,213.02,11.61854611]
[1736070908113,15.03854611,213.14,213.01,3.42]
[1736070908310,15.03854611,213.14,213.01,15.03854611]
[1736070908603,2.3472,213.07,213.02,2.3477]
[1736070908998,2.347,213.09,213.03,2.3476]
[1736070909202,11.61854611,213.14,213.03,2.3476]
[1736070909399,13.47564611,213.17,213.04,11.61854611]
[1736070909609,13.06534611,213.17,213.07,2.3472]
[1736070909909,13.06534611,213.17,213.04,11.61854611]
[1736070910309,2.3468,213.11,213.06,2.3473]
[1736070913108,2.347,213.09,213.04,2.3475]
[1736070913711,2.347,213.09,213.03,3.42]
[1736070913904,2.347,213.09,213.05,2.3474]
[1736070914107,11.61854611,213.14,213.05,2.3474]
[1736070914411,2.3469,213.1,213.05,2.3474]
[1736070914613,11.61854611,213.14,213.03,15.03854611]
[1736070914810,11.61854611,213.17,213.03,15.03854611]
[1736070916111,11.61854611,213.17,213.06,2.3472]
[1736070917313,2.3469,213.1,213.06,2.3472]
[1736070918623,2.3465,213.13,213.08,2.347]
[1736070922316,2.3465,213.13,213.09,7.44320197]
[1736070922815,7.44320197,213.19,213.11,7.44320197]
[1736070923018,5.05669485,213.2,213.08,3.42]
[1736070923019,5.05669485,213.2,213.15,7.44320197]
[1736070923218,2.346,213.19,213.15,9.78950197]
[1736070923421,7.44320197,213.21,213.15,7.44320197]
[1736070923614,7.44320197,213.24,213.17,7.44320197]
[1736070923917,2.3458,213.2,213.16,2.3462]
[1736070924220,11.62230746,213.25,213.16,2.3462]
[1736070924419,11.62230746,213.26,213.15,1.4536]
[1736070924713,11.62230746,213.26,213.18,2.346]
[1736070924918,11.62230746,213.26,213.15,1.4536]
[1736070925821,2.3454,213.23,213.17,2.346]
[1736070926122,11.62230746,213.26,213.17,2.346]
[1736070926515,2.3456,213.22,213.17,2.346]
[1736070926719,2.3456,213.22,213.15,1.4536]
[1736070926720,11.62230746,213.23,213.15,3.7998]
[1736070926919,2.3459,213.19,213.15,3.7998]
[1736070927115,11.62230746,213.23,213.15,4.7536]
[1736070927322,11.62230746,213.23,213.15,1.4536]
[1736070928421,2.3459,213.19,213.15,1.4536]
[1736070930422,2.346,213.18,213.15,1.4536]
[1736070933625,2.3455,213.22,213.18,2.3459]
[1736070933925,2.3455,213.22,213.15,13.07590746]
[1736070934223,2.3455,213.22,213.17,2.346]
[1736070934726,11.62230746,213.26,213.15,1.4536]
[1736070935025,2.346,213.19,213.15,1.4536]
[1736070936219,2.3463,213.15,213.12,3.28]
[1736070936518,2.3463,213.15,213.11,5.6266]
[1736070936926,2.3462,213.16,213.11,3.28]
[1736070937126,2.3462,213.16,213.12,2.3466]
[1736070937528,11.62230746,213.23,213.11,3.28]
[1736070937730,11.62230746,213.23,213.13,2.3465]
[1736070937731,2.3461,213.17,213.13,2.3465]
[1736070943135,2.3461,213.17,213.11,14.90230746]
[1736070943338,2.3461,213.17,213.14,2.3464]
[1736070943735,2.3461,213.17,213.11,14.90230746]
[1736070943736,11.62230746,213.23,213.11,14.90230746]
[1736070944033,2.3458,213.2,213.16,2.3461]
[1736070946531,2.3461,213.17,213.14,2.3463]
[1736070952235,3.28,213.28,213.14,2.3463]
[1736070952435,2.346,213.18,213.14,2.3463]
[1736070954639,2.346,213.18,213.13,10.7188745]
[1736070954834,2.346,213.18,213.15,2.3463]
[1736070955435,2.346,213.18,213.15,9.7851745]
[1736070955636,7.4388745,213.22,213.15,9.7851745]
[1736070955942,2.3459,213.19,213.15,9.7851745]
[1736070956740,2.3459,213.19,213.15,7.4388745]
[1736070956942,2.3459,213.19,213.16,2.3462]
[1736070958347,2.3458,213.2,213.16,2.3462]
[1736070959536,3.28,213.28,213.17,7.4388745]
[1736070959738,2.3457,213.21,213.18,2.3459]
[1736070959942,7.4388745,213.23,213.17,7.4388745]
[1736070960445,7.4388745,213.23,213.17,9.7848745]
[1736070962046,2.3457,213.21,213.17,9.7848745]
[1736070963049,4.86072876,213.26,213.19,7.4388745]
[1736070963252,2.3456,213.22,213.19,7.4388745]
[1736070964448,2.3457,213.21,213.19,7.4388745]
[1736070965251,2.3457,213.21,213.18,2.346]
[1736070965252,7.4388745,213.23,213.13,3.28]
[1736070965450,2.3462,213.16,213.14,3.14]
[1736070965649,7.4388745,213.19,213.14,10.5788745]
[1736070966151,2.346,213.19,213.16,7.4388745]
[1736070968753,2.346,213.19,213.15,9.7850745]
[1736070971056,2.346,213.18,213.15,9.7850745]
[1736070972658,2.346,213.18,213.17,7.4388745]
[1736070976765,2.346,213.18,213.14,3.14]
[1736070976961,2.3464,213.15,213.1,1.3984]
[1736070977262,2.3464,213.15,213.13,7.4388745]
[1736070977457,2.3464,213.15,213.11,5.4867]
[1736070977652,2.3464,213.15,213.12,7.4388745]
[1736070977856,2.3464,213.15,213.14,7.4388745]
[1736070979164,2.3464,213.15,213.12,2.3466]
[1736070979362,2.3464,213.15,213.14,7.4388745]
[1736070981060,7.4388745,213.21,213.14,7.4388745]
[1736070981257,2.346,213.18,213.16,7.4388745]
[1736070986262,7.4388745,213.22,213.16,7.4388745]
[1736070986467,2.3461,213.17,213.16,7.4388745]
[1736070987366,2.3461,213.17,213.14,2.3464]
[1736070987664,2.3461,213.17,213.15,7.4388745]
[1736070988973,2.3461,213.17,213.14,2.3464]
[1736070989172,2.3461,213.17,213.16,7.4388745]
[1736070990368,2.346,213.19,213.16,7.4388745]
[1736070992174,2.346,213.18,213.16,7.4388745]
[1736070993072,2.346,213.18,213.15,2.3463]
[1736070993271,2.346,213.18,213.15,9.7851745]
[1736070993670,3.51994365,213.25,213.17,9.7848745]
[1736070993875,4.86072876,213.26,213.2,7.4388745]
[1736070994377,7.4388745,213.25,213.18,7.4388745]
[1736070996077,2.3457,213.21,213.18,7.4388745]
[1736070996372,7.4388745,213.23,213.16,7.4388745]
[1736070996778,2.346,213.18,213.16,7.4388745]
[1736070998873,4.86072876,213.26,213.16,7.4388745]
[1736070999078,7.4388745,213.25,213.18,7.4388745]
[1736070999477,2.3456,213.22,213.18,7.4388745]
[1736070999975,2.3456,213.22,213.18,9.7847745]
[1736071000682,4.86072876,213.26,213.2,7.4388745]
[1736071002676,2.3454,213.24,213.2,7.4388745]
[1736071002877,7.4388745,213.25,213.18,9.7848745]
[1736071003382,2.3454,213.23,213.18,7.4388745]
[1736071003570,2.3454,213.23,213.2,7.4388745]
[1736071004878,2.3452,213.25,213.22,7.4388745]
[1736071005074,4.86072876,213.26,213.22,7.4388745]
[1736071005884,7.20582876,213.26,213.22,9.7843745]
[1736071006075,7.20582876,213.26,213.24,7.4388745]
[1736071006877,4.86072876,213.26,213.24,7.4388745]
[1736071008488,4.86072876,213.26,213.24,9.7841745]
[1736071008988,4.86072876,213.26,213.24,7.4388745]
[1736071009184,4.86072876,213.26,213.25,2.3452]
[1736071009784,7.4388745,213.35,213.28,2.3449]
[1736071009980,7.4388745,213.35,213.29,7.4388745]
[1736071010186,3.5179436,213.41,213.33,7.4388745]
[1736071010377,1.4393,213.42,213.35,7.4388745]
[1736071010781,7.4388745,213.41,213.35,7.4388745]
[1736071011378,1.4393,213.42,213.35,7.4388745]
[1736071011576,2.344,213.37,213.35,7.4388745]
[1736071012988,0.4081,213.46,213.35,7.4388745]
[1736071013185,7.4388745,213.42,213.35,7.4388745]
[1736071013483,0.4081,213.46,213.35,7.4388745]
[1736071013683,2.3436,213.4,213.35,9.7829745]
[1736071014078,0.4075,213.54,213.37,7.4388745]
[1736071014284,2.3434,213.42,213.39,7.4388745]
[1736071014481,7.4388745,213.45,213.4,3.0]
[1736071014679,3.0,213.52,213.36,3.0]
[1736071014883,9.7825745,213.39,213.36,3.0]
[1736071015682,2.3437,213.39,213.36,3.0]
[1736071016285,2.3437,213.39,213.36,10.4388745]
[1736071016890,2.3435,213.41,213.36,10.4388745]
[1736071018293,2.3435,213.41,213.38,7.4388745]
[1736071019287,7.4388745,213.42,213.36,10.4388745]
[1736071019585,7.4388745,213.43,213.36,10.4388745]
[1736071021293,7.4388745,213.43,213.36,7.4388745]
[1736071021492,7.4388745,213.41,213.37,2.92]
[1736071021894,2.3437,213.39,213.37,2.92]
[1736071023194,2.3435,213.41,213.38,7.4388745]
[1736071023491,4.29922201,213.49,213.38,7.4388745]
[1736071023696,7.4388745,213.46,213.4,7.4388745]
[1736071024294,2.3433,213.42,213.4,7.4388745]
[1736071024493,2.3433,213.42,213.37,5.2638]
[1736071024687,2.3433,213.42,213.4,7.4388745]
[1736071025191,4.29922201,213.49,213.37,5.2638]
[1736071025192,7.4388745,213.44,213.37,2.92]
[1736071025397,2.3436,213.4,213.37,10.3588745]
[1736071029303,2.3436,213.4,213.39,7.4388745]
[1736071029504,257.22826127,213.7,213.39,7.4388745]
[1736071029807,0.75084959,213.62,213.48,7.4388745]
[1736071030106,7.4388745,213.54,213.46,7.4388745]
[1736071030308,7.4388745,213.52,213.46,7.4388745]
[1736071030502,7.4388745,213.52,213.44,7.4388745]
[1736071030707,2.3431,213.44,213.4,1.4818]
[1736071030906,2.3431,213.44,213.41,7.4388745]
[1736071031904,7.4388745,213.46,213.39,7.4388745]
[1736071032109,7.4388745,213.44,213.34,2.92]
[1736071032305,7.4388745,213.44,213.37,7.4388745]
[1736071032603,7.4388745,213.44,213.34,2.92]
[1736071032604,2.3433,213.43,213.39,7.4388745]
[1736071032808,7.4388745,213.46,213.39,7.4388745]
[1736071033804,1.9613,213.51,213.41,7.4388745]
[1736071034005,2.3432,213.43,213.41,7.4388745]
[1736071034210,7.4388745,213.49,213.41,7.4388745]
[1736071034409,2.3431,213.45,213.43,7.4388745]
[1736071034607,7.4388745,213.49,213.43,7.4388745]
[1736071034804,2.92,213.5,213.36,1.3895]
[1736071035110,7.4388745,213.44,213.37,7.4388745]
[1736071035301,2.92,213.5,213.39,7.4388745]
[1736071035502,10.3588745,213.5,213.43,7.4388745]
[1736071035904,2.343,213.46,213.43,7.4388745]
[1736071036112,2.343,213.46,213.45,7.4388745]
[1736071037303,7.4388745,213.48,213.41,2.3433]
[1736071037504,7.4388745,213.48,213.41,7.4388745]
[1736071037907,2.3431,213.45,213.41,7.4388745]
[1736071038413,2.92,213.51,213.43,7.4388745]
[1736071038604,2.3431,213.45,213.43,7.4388745]
[1736071038800,8.8438745,213.52,213.43,7.4388745]
[1736071039008,2.3421,213.53,213.48,7.4388745]
[1736071039208,7.4388745,213.55,213.48,7.4388745]
[1736071039412,7.4388745,213.55,213.44,2.92]
[1736071039712,7.4388745,213.55,213.47,7.4388745]
[1736071040510,2.3425,213.5,213.47,7.4388745]
[1736071040711,7.4388745,213.55,213.47,7.4388745]
[1736071040912,2.3426,213.49,213.47,7.4388745]
[1736071047510,10.3588745,213.56,213.47,7.4388745]
[1736071047707,10.3588745,213.56,213.5,7.4388745]
[1736071047912,2.3423,213.51,213.5,7.4388745]
[1736071049015,2.3426,213.49,213.48,7.4388745]
[1736071049614,2.3429,213.46,213.42,2.3432]
[1736071049819,2.3429,213.46,213.44,7.4388745]
[1736071053817,7.4388745,213.5,213.43,1.4242]
[1736071054118,7.4388745,213.46,213.4,7.4388745]
[1736071056414,2.3434,213.42,213.4,7.4388745]
[1736071062521,2.3434,213.42,213.37,6.6798]
[1736071062722,2.3434,213.42,213.41,7.4388745]
[1736071067427,2.3434,213.42,213.38,2.3438]
[1736071067627,2.3434,213.42,213.4,7.4388745]
[1736071067827,2.3434,213.42,213.4,14.53161399]
[1736071068826,2.3434,213.42,213.38,2.3438]
[1736071069034,2.3434,213.42,213.4,14.53161399]
[1736071072936,2.3434,213.42,213.38,2.3438]
[1736071073136,2.3434,213.42,213.4,14.53161399]
[1736071074133,2.88,213.49,213.4,14.53161399]
[1736071074335,2.3432,213.44,213.42,14.53161399]
[1736071076943,16.82034576,213.51,213.42,14.53161399]
[1736071077130,3.51577093,213.5,213.44,14.53161399]
[1736071077437,10.28581971,213.51,213.44,14.53161399]
[1736071077637,16.82136923,213.51,213.44,14.53161399]
[1736071077837,3.51577093,213.5,213.44,14.53161399]
[1736071078029,7.40581971,213.51,213.44,14.53161399]
[1736071078232,2.3426,213.49,213.46,14.53161399]
[1736071080536,2.3428,213.47,213.43,16.87481399]
[1736071080736,18.42166277,213.51,213.42,15.93561399]
[1736071081041,2.3435,213.41,213.37,3.7998]
[1736071081744,2.3435,213.41,213.37,1.4559]